Cogmind - Beta 13 @@@ ROGUE MODE // 2024.04.27 @ 17:08:45 Player: Vyx Result: Destroyed by 6J-YMP(R) with Subdweller Laser Performance ------------- Evolutions (0) 0 Regions Visited (3) 600 Robots Destroyed (37) 185 Value Destroyed (849) 849 Prototype IDs (1) 20 Alien Tech Used (0) 0 Bonus (60) 60 TOTAL SCORE: 1714 Bonus ------- Follower Combat Kills 60 Cogmind --------- Core Integrity 0/250 Matter 5/300 Energy 22/100 System Corruption 11% Temperature Cool (7) Movement Treading (160) Location -10/Subcaves Parts ------- > --- POWER (1) -------- (None) > --- PROPULSION (2) --- Spiked Treads > --- UTILITY (2) ------ (None) > --- WEAPON (2) ------- (None) > --- INVENTORY (5) ---- High-capacity Matter Pod (200) Seismic Detector Subdweller Beam Cannon Subdweller Beam Cannon Makeshift Hammer Peak State ------------ > --- POWER ------------ Light Nuclear Core > --- PROPULSION ------- Light Treads Light Treads > --- UTILITY ---------- Large Storage Unit Experimental Sensor Array > --- WEAPON ----------- Light Cannon Light Cannon > --- INVENTORY -------- Ion Engine High-capacity Matter Pod Machine Analyzer Seismic Detector Transport Network Coupler Improved Light Armor Plating Improved Trap Extractor EM Pulse Cannon Shock Bomb Launcher Grenade Launcher Grenade Launcher Grenade Launcher Grenade Launcher Datajack Makeshift Hammer [Rating: 19] Favorites ----------- Power Ion Engine Engine Ion Engine Power Core Light Nuclear Core Propulsion Light Treads Treads Light Treads Utility Large Storage Unit Device Improved Sensor Array Storage Large Storage Unit Processor Signal Interpreter Protection Improved Light Armor Plating Weapon Light Cannon Energy Gun Small Laser Energy Cannon EM Pulse Cannon Ballistic Gun Assault Rifle Ballistic Cannon Light Cannon Launcher Shock Bomb Launcher Impact Weapon Makeshift Hammer Build | -11 -10 -10 -10 ------- Run | Yrd Mat Min Sub Slots Evolved . | . . . . Power . | . . . . Propulsion . | . . . . Utility . | . . . . Weapon . | . . . . Parts Attached 66 | 7 10 10 39 Power 5 | 1 1 1 2 Engine 4 | 1 . 1 2 Core 1 | . 1 . . Reactor . | . . . . Propulsion 7 | 2 2 2 1 Treads 7 | 2 2 2 1 Leg . | . . . . Wheel . | . . . . Hover . | . . . . Flight . | . . . . Utility 23 | 2 3 6 12 Device 14 | 1 1 6 6 Storage 2 | 1 1 . . Processor 1 | . 1 . . Hackware . | . . . . Protection 6 | . . . 6 Artifact . | . . . . Weapon 31 | 2 4 1 24 Energy Gun 2 | 2 . . . Energy Cannon 1 | . . . 1 Ballistic Gun 1 | . 1 . . Ballistic Cannon 16 | . 3 1 12 Launcher 6 | . . . 6 Special Weapon . | . . . . Impact Weapon 5 | . . . 5 Slashing Weapon . | . . . . Piercing Weapon . | . . . . Special Melee Weapon . | . . . . Unidentified Prototypes 1 | . . 1 . Corrupted Parts 2 | . . . 2 System Corruption 9 | . . . 9 Parts Lost 10 | . . . 10 Power 2 | . . . 2 Propulsion 2 | . . . 2 Utility 1 | . . . 1 Weapon 5 | . . . 5 Highest Loss Streak 6 | . . . 6 To Critical Strikes 1 | . . . 1 Average Slot Usage (%) 97 | . 99 100 94 Engine 9 | . 9 1 13 Core 4 | . 4 12 . Treads 26 | . 27 28 24 Device 7 | . 5 9 7 Storage 13 | . 14 14 13 Processor 4 | . 8 4 . Protection 2 | . . . 6 Energy Cannon 1 | . . . 2 Ballistic Gun 1 | . 2 . . Ballistic Cannon 23 | . 24 28 19 Impact Weapon 1 | . . . 3 Naked Turns . | . . . . Heaviest Build 40 | 13 31 34 40 Greatest Support 40 | 40 40 40 40 Greatest Overweight (x) 4 | 4 1 . 1 Average Overweight (x) . | 1 . . . Largest Inventory Capacity 15 | 8 15 15 15 Average Capacity 13 | 7 11 15 14 Most Carried 15 | 4 15 15 15 Average Carried 12 | . 10 14 14 Final Capacity 15 | 8 15 15 5 Final Carried 15 | 4 15 15 5 Class Distribution -------------------- 93% | Mutant 6% | Scavenger-Mutant Dominant Class ---------------- Mutant | -10/Materials Mutant | -10/Mines Mutant | -10/Subcaves Resources | -11 -10 -10 -10 ----------- Run | Yrd Mat Min Sub Matter Collected 1740 | 270 602 302 566 Remotely . | . . . . Salvage Created 934 | 182 375 12 365 Parts 74 | 15 32 2 25 Haulers Intercepted 2 | . 2 . . Recyclers Shooed 1 | . . 1 . Parts Field Recycled . | . . . . Retrieved Matter . | . . . . Parts Self-Destructed . | . . . . Prevented . | . . . . Kills | -11 -10 -10 -10 ------- Run | Yrd Mat Min Sub Combat Hostiles Destroyed 27 | . 13 3 11 Cannons 22 | . 13 3 6 AOE 5 | . . . 5 Classes Destroyed 10 | 3 5 1 1 Worker 2 | 2 . . . Tunneler 4 | 4 . . . Hauler 2 | . 2 . . Recycler 1 | 1 . . . Operator 1 | . 1 . . Watcher 2 | . 2 . . Swarmer 7 | . 6 1 . Grunt 7 | . 7 . . Subdweller 11 | . . . 11 Assembled 2 | . . 2 . Best Kill Streak 5 | 5 3 2 2 Combat Bots Only 3 | . 3 2 2 Max Kills in Single Turn 2 | 2 2 1 1 Gunslinging . | . . . . Exploded 1 | . . . 1 Melee . | . . . . Uniques/NPCs Destroyed . | . . . . Combat | -11 -10 -10 -10 -------- Run | Yrd Mat Min Sub Hostile Shots Fired 140 | . 53 13 74 Missed 44 | . 18 3 23 Damage Taken 1868 | . 330 155 1383 Core 260 | . 34 10 216 Absorbed by Shields . | . . . . Regen/Repaired (Parts) 117 | . 117 . . Core Remaining (%) 100 | 100 . . . Volleys Fired 118 | 12 49 8 49 Largest 2 | 2 2 2 2 Hottest 80 | 80 70 70 78 Shots Fired 216 | 24 97 17 78 Gun 41 | 24 17 . . Cannon 148 | . 80 17 51 Launcher 27 | . . . 27 Special . | . . . . Kinetic 165 | . 97 17 51 Thermal 24 | 24 . . . Explosive 12 | . . . 12 Electromagnetic 15 | . . . 15 Robot Hit Streak 25 | 9 8 5 25 Robot Miss Streak 7 | 2 7 1 2 Penetration Max . | . . . . Secondary Targets . | . . . . Shots Hit Robots 133 | 13 54 11 55 Core Hits 62 | 8 25 4 25 Critical Kills . | . . . . Critical Parts Destroyed . | . . . . Critical Strikes 4 | . 3 . 1 Blast 4 | . 3 . 1 Melee Attacks 42 | . . . 42 Impact 42 | . . . 42 Slashing . | . . . . Piercing . | . . . . Sneak Attacks . | . . . . Combat Hostiles . | . . . . Follow-up Attacks . | . . . . Damage Inflicted 3047 | 154 937 199 1757 Guns 279 | 154 125 . . Cannons 1733 | . 805 199 729 Explosions 1028 | . . . 1028 Melee . | . . . . Ramming 7 | . 7 . . Kinetic 1858 | . 930 199 729 Thermal 154 | 154 . . . Explosive 742 | . . . 742 Electromagnetic 286 | . . . 286 Impact . | . . . . Slashing . | . . . . Piercing . | . . . . Highest Corruption 11 | . 2 2 11 Average Corruption 3 | . 2 2 4 Corruption Purged . | . . . . Corruption Blocked . | . . . . Effects 78 | . 18 16 44 Message Errors 17 | . 4 2 11 Matter Fused 21 | . 5 5 11 Heat Flow Errors 5 | . 2 1 2 Energy Discharges 6 | . . 2 4 Parts Rejected 2 | . . . 2 Data Loss (minor) 13 | . 3 2 8 Data Loss (major) 4 | . . 2 2 Misfires 4 | . 1 2 1 Alerts 4 | . 2 . 2 Weapon Failures 2 | . 1 . 1 Overload Shots . | . . . . Overflow Damage 23 | . 22 . 1 Projectiles 22 | . 22 . . Explosions 1 | . . . 1 Melee . | . . . . Knockbacks 22 | . 6 6 10 Impact . | . . . . Kinetic 22 | . 6 6 10 Secondary . | . . . . Self-Inflicted Damage 175 | . . . 175 Shots 11 | . . . 11 Rammed 5 | . 5 . . Targets Rammed 5 | . 5 . . Kicked . | . . . . Crushed . | . . . . Highest Temperature 241 | 108 168 115 241 Average Temperature 40 | 48 29 31 123 Received Heat Transfer 585 | . 87 . 498 Siege Activations . | . . . . Robots Corrupted . | . . . . Combat Hostiles . | . . . . Parts Fried 1 | . . . 1 Impact Corruptions . | . . . . Robots Melted . | . . . . Combat Hostiles . | . . . . Parts Melted 1 | 1 . . . Heat Transferred 350 | 350 . . . Parts Sabotaged . | . . . . Parts Stolen . | . . . . Parts Stripped . | . . . . Power Chain Reactions 1 | . . . 1 Alert | -11 -10 -10 -10 ------- Run | Yrd Mat Min Sub Peak Influence 193 | 35 193 109 . Initial 56 | . 22 56 . Average 69 | 23 86 46 . Maximum Alert Level . | . . . . Low Security (%) 100 | 100 100 100 . Level 1 . | . . . . Level 2 . | . . . . Level 3 . | . . . . Level 4 . | . . . . Level 5 . | . . . . High Security . | . . . . Max Security . | . . . . Squads Dispatched 3 | . 3 . . Investigation 2 | . 2 . . Extermination . | . . . . Reinforcement 1 | . 1 . . Assault . | . . . . Garrison . | . . . . Intercept . | . . . . Searches Triggered . | . . . . Construction Impeded . | . . . . Haulers Reinforced . | . . . . Active Scanning Responses . | . . . . Cargo Convoy Interrupts . | . . . . Stealth | -11 -10 -10 -10 --------- Run | Yrd Mat Min Sub Distress Signals 1 | . 1 . . Communications Jammed . | . . . . Distress Signals . | . . . . Times Spotted 52 | . 26 12 14 Peak Tracking Total 13 | . 4 13 4 Tactical Retreats 2 | . 1 1 . Traps | -11 -10 -10 -10 ------- Run | Yrd Mat Min Sub Traps Triggered 4 | . 2 2 . Indirectly . | . . . . Trap Hack Attempts . | . . . . Triggered . | . . . . Disarmed . | . . . . Reprogrammed . | . . . . Reused . | . . . . Traps Extracted . | . . . . Installed . | . . . . Triggered . | . . . . Most Traps Carried 3 | . . 3 3 Machines | -11 -10 -10 -10 ---------- Run | Yrd Mat Min Sub Machines Disabled . | . . . . Max in Single Turn . | . . . . Machines Repaired . | . . . . Machines Dismantled . | . . . . Machines Sabotaged . | . . . . Overloaded Fab Kills . | . . . . Hacking | -11 -10 -10 -10 --------- Run | Yrd Mat Min Sub Machines Accessed 12 | . 10 1 1 Terminals 7 | . 7 . . Fabricators . | . . . . Repair Stations 1 | . 1 . . Recycling Units 2 | . 2 . . Scanalyzers . | . . . . Garrison Access . | . . . . Total Hacks 27 | . 22 1 4 Successful 15 | . 10 1 4 Failed 12 | . 12 . . Catastrophic 4 | . 4 . . Database Lockouts . | . . . . Manual 21 | . 21 . . Terminals 15 | . 15 . . Fabricators . | . . . . Repair Stations 5 | . 5 . . Recycling Units 2 | . 2 . . Scanalyzers . | . . . . Garrison Access . | . . . . Terminal Hacks 8 | . 3 1 4 Record 4 | . . . 4 Robot Analysis 2 | . 2 . . Open Door 1 | . . 1 . Branch Access Points 1 | . 1 . . Fabricator Hacks . | . . . . Repair Station Hacks 4 | . 4 . . Scan Component 2 | . 2 . . Repair 2 | . 2 . . Recycling Unit Hacks . | . . . . Scanalyzer . | . . . . Garrison Access Hacks . | . . . . Unauthorized Hacks 3 | . 3 . . Terminals 1 | . 1 . . Botnet 1 | . 1 . . Fabricators . | . . . . Repair Stations . | . . . . Recycling Units 2 | . 2 . . Tunnel 2 | . 2 . . Scanalyzers . | . . . . Garrison Access . | . . . . Data Cores Recovered . | . . . . Used . | . . . . Hacking Detections 8 | . 8 . . Full Trace Events 3 | . 3 . . Feedback Events . | . . . . Feedback Blocked . | . . . . Robot Schematics Acquired . | . . . . Robots Built . | . . . . Authchips . | . . . . Time . | . . . . Total Robot Build Rating . | . . . . Part Schematics Acquired . | . . . . Parts Built . | . . . . Authchips . | . . . . Time . | . . . . Total Part Build Rating . | . . . . Parts Repaired 2 | . 2 . . Time 52 | . 52 . . Parts Recycled . | . . . . Recycled Matter . | . . . . Retrieved Matter . | . . . . Retrieved Components . | . . . . Parts Scanalyzed . | . . . . Part Schematics Acquired . | . . . . Parts Damaged . | . . . . Bothacking | -11 -10 -10 -10 ------------ Run | Yrd Mat Min Sub Used RIF Installer . | . . . . Robots Hacked . | . . . . Non-combat . | . . . . Combat . | . . . . Robot Hacks Applied . | . . . . Relay Couplers Released . | . . . . Fabnet Peak Effective % . | . . . . Robots Rewired . | . . . . Allies Hacked . | . . . . Hacks Repelled . | . . . . Allies | -11 -10 -10 -10 -------- Run | Yrd Mat Min Sub Total Allies 1 | . . 1 . Largest Group 1 | . . 1 . Highest-Rated Group 31 | . . 31 . Highest-Rated Ally 31 | . . 31 . Total Orders . | . . . . Ally Attacks 5 | . . 5 . Total Damage 85 | . . 85 . Kills 2 | . . 2 . Allies Corrupted . | . . . . Allies Melted . | . . . . Intel | -11 -10 -10 -10 ------- Run | Yrd Mat Min Sub Robot Analysis Total 2 | . 2 . . Derelict Logs Recovered 4 | . . 2 2 Drone Launches . | . . . . Drone Recoveries . | . . . . Exploration | -11 -10 -10 -10 ------------- Run | Yrd Mat Min Sub Turns Passed 5409 | 203 2058 1118 2030 Spaces Moved 2771 | 83 1095 641 952 Core 52 | 52 . . . Treads 2719 | 31 1095 641 952 Legs . | . . . . Wheels . | . . . . Hover . | . . . . Flight . | . . . . Fastest Speed 50 | 50 160 160 160 Average Speed 167 | 182 161 160 179 Slowest Speed 260 | 250 240 160 260 Overloaded Moves . | . . . . Propulsion Burnouts . | . . . . Robots Hopped . | . . . . Cave-ins Triggered . | . . . . Exploration Rate (%) 62 | 5 98 95 51 Regions Visited 3 Branch Regions 2 Pre-discovered Areas 5 | . 2 1 2 Known Exits Taken 1 | . 1 . . Unknown Exits Taken 2 | 1 . 1 . Scrap Searched 9 | . . 1 8 Spaces Dug 3 | . . . 3 Terrain Destroyed 30 | . . . 30 Melee 3 | . . . 3 Projectile . | . . . . AOE 27 | . . . 27 Terrain Rammed . | . . . . Walls Destroyed . | . . . . Machines Disabled . | . . . . Actions | -11 -10 -10 -10 --------- Run | Yrd Mat Min Sub Total 3263 | 107 1292 721 1143 Wait 182 | 2 100 39 41 Move 2768 | 82 1094 640 952 Hop . | . . . . Pick Up 48 | 4 21 12 11 Fast Attach 15 | 7 4 3 1 Attach 10 | . . 3 7 Detach . | . . . . Swap 41 | . 6 4 31 Drop 34 | . 13 12 9 Fire 118 | 12 49 8 49 Melee 42 | . . . 42 Ram . | . . . . Kick . | . . . . Crush 5 | . 5 . . Escape Stasis . | . . . . Rewire . | . . . . Trap . | . . . . Miscellaneous . | . . . . Route ------- -11/Scrapyard -10/Materials (discovered 4 exits: *Mat x3 / *Min) -10/Mines (discovered 3 exits: *Mat x2 / *Sub) -10/Subcaves (discovered 3 exits: Mat x2 / Rec) History --------- Turn | Location | Event 3 | -11/Scrapyard | Discovered new exit (range 15) 204 | -11/Scrapyard | Entered Materials 300 | -10/Materials | Build established: Mutant 692 | -10/Materials | Discovered new exit (range 16) 715 | -10/Materials | Identified exit to Mines 975 | -10/Materials | Discovered new exit (range 13) 1094 | -10/Materials | Identified exit to Materials 1400 | -10/Materials | Discovered exit to Materials (range 14) 1693 | -10/Materials | Repaired Lgt. Treads 1725 | -10/Materials | Repaired Lgt. Cannon? 1903 | -10/Materials | Discovered exit to Materials (range 5) 2262 | -10/Materials | Entered Mines 2265 | -10/Mines | Received a Mining Laser from a helpful Derelict 2449 | -10/Mines | Discovered exit to Materials (range 10) 2619 | -10/Mines | Met a Derelict who couldn't figure out how to use a Trap Extractor 2838 | -10/Mines | A weapon hastily lodged in a ceiling crevice suddenly fell to the ground 2994 | -10/Mines | Build established: Scavenger-Mutant 3016 | -10/Mines | Discovered exit to Materials (range 6) 3026 | -10/Mines | Found a hidden stash of uninstalled traps 3065 | -10/Mines | Assembled infested the area 3065 | -10/Mines | Discovered new exit (range 9) 3070 | -10/Mines | Assisted by a Guerilla fighting off Assembled 3219 | -10/Mines | Found a damaged Exp. Sensor Array with a note attached 3223 | -10/Mines | Found Prototype Device 3223 | -10/Mines | Identified Exp. Sensor Array 3243 | -10/Mines | Learned 4 Materials zone layouts 3319 | -10/Mines | Build established: Mutant 3380 | -10/Mines | Entered Subcaves 3440 | -10/Subcaves | Visited Clippyterm 3444 | -10/Subcaves | Identified exit to Recycling 3444 | -10/Subcaves | Identified exit to Materials 3818 | -10/Subcaves | Disturbed a concealed Subdweller 4210 | -10/Subcaves | Shifting Twisted Machinery released Sub. Machine Gun 4215 | -10/Subcaves | Shifting Twisted Machinery released Sub. Beam Cannon 4245 | -10/Subcaves | Core integrity fell below 50% 4650 | -10/Subcaves | Shifting Twisted Machinery released Riot Gun 4840 | -10/Subcaves | System corruption reached 10% 4867 | -10/Subcaves | Disturbed a concealed Subdweller 5331 | -10/Subcaves | Learned location of Storage (-8) 5386 | -10/Subcaves | Ambushed by Subdweller buried in earth 5386 | -10/Subcaves | Ambushed by Subdweller buried in earth 5404 | -10/Subcaves | Core integrity fell below 20% 5410 | -10/Subcaves | Destroyed by 6J-YMP(R) with Subdweller Laser Last Messages --------------- 05336_ System corrupted: Battle Cannon misfires. 05372_ MK:U XPATWAE6LW5JKQJ =O KT62 05386_ Destroyed Scrap Shield. 05387_ N0-KSL(R): "ARGHSUB!" 05387_ 6J-YMP(R): "ARGHSUB!" 05389_ 6V-J9C(R) destroyed. 05392_ The unstable cave ceiling collapses. 05395_ Lgt. Ion Engine destroyed. 05396_ Grenade Launcher destroyed. 05399_ The unstable cave ceiling collapses. 05399_ Shock Bomb Launcher destroyed. 05399_ Destroyed Shock Bomb Launcher. 05401_ Imp. Light Armor Plating destroyed. 05404_ System corrupted: Battle Cannon jammed. 05404_ N0-KSL(R) knocked back. 05405_ The unstable cave ceiling collapses. 05405_ 1 Matter crushed. 05405_ Battle Cannon destroyed. 05409_ System corrupted: Battle Cannon rejected. 05409_ Dropped Lrg. Storage Unit. Map ----- +----------------------------------------------------+ | ### ##???????????????????????????????????? | | ##?# ##??????????????????????????????????? | | ####??# ### #??????????????????????????????????? | | ??????###?## #??????????????????????????????????? | | ???????????####??????????????????????????????????? | | ?????????????????????????????????????????????????? | | ?????????????????????????????????????????????????? | | ?????????????????????????????????????????????????? | | ???????????????????????????????"?????????????????? | | ?????????????????????????????""""????????????????? | | ?????????????????????????????#" "????????????????? | | ?????????????????????????????# ????????????????? | | ?????????????????????????????? ????????????????? | | ?????????????????????????????? ##??????????????? | | ?????????????????????????????? ???????????????? | | ?????????????????????????????? #???????????????? | | ??????????????????????????????? #??##?????? ???? | | ??????????????????????????????? ### ##?? ???? | | ?????????????????????????????? ## #??? | | ?????????????????????????##### #???? | | ?????????????????????????# # #????? | | ?????????????????????????# #?????? | | ?????????????????####??### # # #?????? | | ????????????###### #### RR R #????? | | ????????????# # [!!= ##????? | | ????????????# ]@]] % ##?????? | | ????????????## #[ ###! #??????? | | ?????????????### #?## ##??????? | | ???????????????# ###??# ### #???????? | | ???????????????# #?? ###??# ?????? | | ??????????????## #?# ##????? ?????? | | ???####???????# ## #?## #??????? ????? | | #### #####??## ### #?# ???????? ?????? | | ## #### ## ##?# ????????? ?????? | | ## #?##??# ???????? ???????? | | ## #????? ##????????????????? | | #### ##????? #?????????????????? | | ###??### ##?????? #?????????????????? | | #### ### ##??????? ??????????????????? | | ## ##???????? ??????????????????? | | ] ## #?????????? ??????????????????? | | #### #??????????????????????????????? | | # #??# #?????????????????????????????? | | ## #??? #????????????????????????????? | | ?? ##??? ????????????????????????????? | | ?? #???? #???????????????????????????? | | ?? ??? #???????????????????????????? | | ?? ?? ##???????????????????????????? | | ??# #?? #?????????????????????????????? | | ???# #????????????????????????????????????? | +----------------------------------------------------+ Best States ------------- Heat Dissipation 25 Energy Generation 15 Energy Capacity 250 Matter Stores 300 Matter Capacity 300 Sight Range 16 Robot Scan Range 15 Terrain Scan Range 14 Terrain Scan Density 10 Armor Coverage 150 Evasion (%) 50 Recoil Reduction 2 Trap Extractor Capacity 6 Item Schematics ----------------- None Robot Schematics ------------------ None Fabricated ------------ Nothing Alien Tech Used ----------------- None Achievements -------------- I Survived The Infestation Slippery One root@ Challenges ------------ None Game ------ Seed DataTransportMagmablaster Manual? 0 Play Time 01:14:24 Cumulative 20.2 hours Start 2024.04.27 @ 15:33:52 End 2024.04.27 @ 17:08:45 Sessions 1 Manual Loads 0 Difficulty Rogue Special Mode None Game No. 8 Rogue 8 Adventurer 0 Explorer 0 Win Type - Total 0 Types 0/0/0/0/0/0/0/0/0 Lore% 4 Gallery% 20 Achievement% 17 Wizard Run 0 Options --------- Layout 0 ASCII 0 Keyboard 0 Movement Numpad Keybinds 0 Fullscreen 1 Font 18/SmallcapsGlow Map View 76x50 Zoom Use 4% Tactical HUD 1 Map Filters NONE Filters NONE Steam 1 RUN: d20af0eb-1c2c-4153-a37b-b4c0e33b37fe